[Event "GER-ch Youth-U12 2022"]
[Site "Willingen"]
[Date "2022.06.10"]
[Round "8.27"]
[White "Dell, Philip"]
[Black "Fettig, Michel"]
[Result "0-1"]
[ECO "A48"]
[WhiteElo "1457"]
[BlackElo "1407"]
[Annotator "NA RC COMBH"]
[PlyCount "60"]
[EventDate "2022.06.05"]
[EventType "swiss"]
[EventRounds "9"]
[EventCountry "GER"]
[SourceTitle "playchess.com"]
[Source "ChessBase"]
[SourceQuality "1"]
[TimeControl "40/4500+30:900+30"]

1. d4 {[%emt 0:00:00]} Nf6 {[%emt 0:00:00]} 2. Nf3 {[%emt 0:00:00]} g6 {[%emt 0:00:00]} 3. Bf4 {[%emt 0:00:00]} Bg7 {[%emt 0:00:00]} 4. e3 {[%emt 0:00:00]} d6 {[%emt 0:00:00]} 5. Nbd2 {[%emt 0:00:00]} Bf5 {[%emt 0:00:00]} 6. Nh4 {[%emt 0:00:00]} Bd7 {[%emt 0:00:00]} 7. Bd3 {[%emt 0:05:10]} Nh5 {[%emt 0:00:00]} 8. Bg3 {[%emt 0:01:57]} O-O {[%emt 0:04:08]} 9. c3 {[%emt 0:07:48]} f5 {[%emt 0:11:26]} 10. Qb3+ {[%emt 0:08:26]} Kh8 {[%emt 0:03:06]} 11. Qxb7 {[%emt 0:08:48]} Bc6 {[%emt 0:02:01]} 12. Qb3 {[%emt 0:01:12]} e5 {[%emt 0:03:54]} 13. f4 {[%emt 0:08:18]} exf4 {[%emt 0:02:25]} 14. exf4 {[%emt 0:02:47]} Nxf4 {[%emt 0:01:10]} 15. Bxf4 {[%emt 0:01:28]} Qxh4+ {[%emt 0:02:04]} 16. g3 {[%emt 0:02:49]} Qe7+ {[%emt 0:00:14]} 17. Kf2 {[%emt 0:00:55]} Bxh1 {[%emt 0:00:13]} 18. Rxh1 {[%emt 0:00:08]} Nd7 {[%emt 0:02:29]} 19. Nf3 {[%emt 0:03:00]} Rab8 {[%emt 0:01:10]} 20. Qc2 {[%emt 0:02:42]} Qf7 {[%emt 0:03:14]} 21. b3 {[%emt 0:01:01]} Nb6 {[%emt 0:05:52]} 22. Ng5 {[%emt 0:02:19]} Qf6 {[%emt 0:02:32]} 23. h4 {[%emt 0:01:26]} h6 {[%emt 0:01:24]} 24. Qd1 {[%emt 0:04:20]} Nd5 {[%emt 0:01:32]} 25. Bc4 {[%emt 0:01:02]} Nxc3 {[%emt 0:00:58]} 26. Qc2 {[%emt 0:01:43]} Qxd4+ {[%emt 0:01:19]} 27. Be3 {[%emt 0:00:53]} Ne4+ {[%emt 0:01:00]} 28. Nxe4 {[%emt 0:02:05]} fxe4+ {[%emt 0:00:09]} 29. Ke2 {[%emt 0:00:08]} Qe5 {[%emt 0:01:31]} 30. Bf4 {[%emt 0:01:16]} Qh5+ {[%emt 0:00:28]} 0-1

[Event "GER-ch Youth-U12 2022"]
[Site "Willingen"]
[Date "2022.06.11"]
[Round "9.1"]
[White "Buchinger, Alexis"]
[Black "Korchynskyi, Mykola"]
[Result "1-0"]
[ECO "C07"]
[WhiteElo "1676"]
[BlackElo "1723"]
[Annotator "NA RC COMBH"]
[PlyCount "101"]
[EventDate "2022.06.05"]
[EventType "swiss"]
[EventRounds "9"]
[EventCountry "GER"]
[SourceTitle "playchess.com"]
[Source "ChessBase"]
[SourceQuality "1"]
[TimeControl "40/4500+30:900+30"]

1. e4 {[%emt 0:00:00]} e6 {[%emt 0:00:00]} 2. d4 {[%emt 0:00:00]} d5 {[%emt 0:00:00]} 3. Nd2 {[%emt 0:00:00]} c5 {[%emt 0:00:00]} 4. exd5 {[%emt 0:00:00]} Qxd5 {[%emt 0:00:00]} 5. Ngf3 {[%emt 0:00:00]} cxd4 {[%emt 0:00:00]} 6. Bc4 {[%emt 0:00:00]} Qd6 {[%emt 0:00:00]} 7. Qe2 {[%emt 0:00:00]} Nf6 {[%emt 0:00:00]} 8. Nb3 {[%emt 0:00:00]} Nc6 {[%emt 0:00:00]} 9. Bg5 {[%emt 0:00:00]} Be7 {[%emt 0:00:00]} 10. O-O-O {[%emt 0:00:00]} Qc7 {[%emt 0:00:00]} 11. Nbxd4 {[%emt 0:00:00]} a6 {[%emt 0:00:00]} 12. Rhe1 {[%emt 0:00:00]} O-O {[%emt 0:00:24]} 13. h4 {[%emt 0:06:02]} h6 {[%emt 0:08:22]} 14. Nxc6 {[%emt 0:04:33]} bxc6 {[%emt 0:00:55]} 15. Bd2 {[%emt 0:06:46]} Nd5 {[%emt 0:01:28]} 16. g4 {[%emt 0:04:52]} Bb4 {[%emt 0:20:07]} 17. Bxb4 {[%emt 0:08:02]} Nxb4 {[%emt 0:00:09]} 18. Ne5 {[%emt 0:01:25]} Qe7 {[%emt 0:21:22]} 19. Rh1 {[%emt 0:04:02]} g6 {[%emt 0:02:16]} 20. a3 {[%emt 0:01:39]} Nd5 {[%emt 0:00:23]} 21. Nxc6 {[%emt 0:00:44]} Qd6 {[%emt 0:01:38]} 22. Bxd5 {[%emt 0:00:30]} exd5 {[%emt 0:00:02]} 23. Ne7+ {[%emt 0:02:04]} Kh7 {[%emt 0:03:42]} 24. Nxd5 {[%emt 0:10:02]} Bb7 {[%emt 0:00:18]} 25. Ne3 {[%emt 0:00:46]} Qf4 {[%emt 0:00:28]} 26. Rh3 {[%emt 0:01:33]} Rac8 {[%emt 0:06:20]} 27. Kb1 {[%emt 0:04:04]} Be4 {[%emt 0:03:50]} 28. h5 {[%emt 0:11:29]} Rc7 {[%emt 0:05:11]} 29. hxg6+ {[%emt 0:00:45]} fxg6 {[%emt 0:00:01]} 30. Rd2 {[%emt 0:04:29]} Rb8 {[%emt 0:05:50]} 31. Nd5 {[%emt 0:03:16]} Rcb7 {[%emt 0:02:42]} 32. Nb4 {[%emt 0:04:43]} a5 {[%emt 0:00:07]} 33. Re3 {[%emt 0:02:06]} axb4 {[%emt 0:01:15]} 34. Rxe4 {[%emt 0:00:37]} Qf7 {[%emt 0:01:10]} 35. Rxb4 {[%emt 0:00:55]} Rxb4 {[%emt 0:00:11]} 36. axb4 {[%emt 0:00:10]} Ra8 {[%emt 0:00:51]} 37. Rd4 {[%emt 0:05:43]} Qa7 {[%emt 0:00:49]} 38. c3 {[%emt 0:00:22]} Qa2+ {[%emt 0:00:34]} 39. Kc2 {[%emt 0:00:34]} Qa4+ {[%emt 0:00:12]} 40. Kd2 {[%emt 0:00:32]} Re8 {[%emt 0:00:15]} 41. Qf3 {[%emt 0:17:41]} Re7 {[%emt 0:15:34]} 42. Qf8 {[%emt 0:00:00]} Qa7 {[%emt 0:00:00]} 43. Rd8 {[%emt 0:00:00]} Rd7+ {[%emt 0:00:00]} 44. Rxd7+ {[%emt 0:00:00]} Qxd7+ {[%emt 0:00:00]} 45. Kc2 {[%emt 0:00:00]} Qa4+ {[%emt 0:00:00]} 46. Kd3 {[%emt 0:00:00]} Qd7+ {[%emt 0:00:00]} 47. Ke3 {[%emt 0:00:00]} Qxg4 {[%emt 0:00:00]} 48. Qe7+ {[%emt 0:00:00]} Kg8 {[%emt 0:00:00]} 49. Qd8+ {[%emt 0:00:00]} Kf7 {[%emt 0:00:00]} 50. Qd5+ {[%emt 0:00:00]} Kf6 {[%emt 0:00:00]} 51. Qf3+ {[%emt 0:00:00]} 1-0

[Event "GER-ch Youth-U12 2022"]
[Site "Willingen"]
[Date "2022.06.11"]
[Round "9.2"]
[White "Lu, Yunong Elias"]
[Black "Stichter, Constantin Paul"]
[Result "1/2-1/2"]
[ECO "C01"]
[WhiteElo "1671"]
[BlackElo "1472"]
[Annotator "NA RC COMBH"]
[PlyCount "66"]
[EventDate "2022.06.05"]
[EventType "swiss"]
[EventRounds "9"]
[EventCountry "GER"]
[SourceTitle "playchess.com"]
[Source "ChessBase"]
[SourceQuality "1"]
[TimeControl "40/4500+30:900+30"]

1. e4 {[%emt 0:00:00]} e6 {[%emt 0:00:00]} 2. d4 {[%emt 0:00:00]} d5 {[%emt 0:00:00]} 3. Bd3 {[%emt 0:00:00]} dxe4 {[%emt 0:00:00]} 4. Bxe4 {[%emt 0:00:00]} Nf6 {[%emt 0:00:00]} 5. Bf3 {[%emt 0:00:00]} c5 {[%emt 0:00:00]} 6. Ne2 {[%emt 0:00:00]} Nc6 {[%emt 0:00:00]} 7. Be3 {[%emt 0:00:00]} Qb6 {[%emt 0:00:00]} 8. b3 {[%emt 0:00:00]} Bd7 {[%emt 0:00:00]} 9. O-O {[%emt 0:03:43]} cxd4 {[%emt 0:00:15]} 10. Nxd4 {[%emt 0:06:41]} Bc5 {[%emt 0:01:31]} 11. c3 {[%emt 0:12:04]} Ne5 {[%emt 0:12:47]} 12. b4 {[%emt 0:09:32]} Bxd4 {[%emt 0:00:32]} 13. Bxd4 {[%emt 0:03:28]} Nxf3+ {[%emt 0:02:51]} 14. Qxf3 {[%emt 0:00:33]} Qc6 {[%emt 0:10:44]} 15. Qxc6 {[%emt 0:10:30]} Bxc6 {[%emt 0:01:29]} 16. Bxf6 {[%emt 0:00:15]} gxf6 {[%emt 0:00:02]} 17. a4 {[%emt 0:10:35]} Ke7 {[%emt 0:04:03]} 18. b5 {[%emt 0:05:59]} Bd5 {[%emt 0:02:10]} 19. Na3 {[%emt 0:06:04]} Rac8 {[%emt 0:00:52]} 20. Rac1 {[%emt 0:02:01]} Bc4 {[%emt 0:02:25]} 21. Rfd1 {[%emt 0:01:39]} e5 {[%emt 0:00:23]} 22. Rd2 {[%emt 0:03:56]} Rc7 {[%emt 0:04:36]} 23. Rb2 {[%emt 0:03:28]} Rc5 {[%emt 0:01:17]} 24. Rb4 {[%emt 0:01:13]} Rhc8 {[%emt 0:02:00]} 25. f3 {[%emt 0:01:47]} f5 {[%emt 0:02:18]} 26. Kf2 {[%emt 0:00:24]} Ke6 {[%emt 0:00:33]} 27. Ke3 {[%emt 0:01:11]} f4+ {[%emt 0:01:31]} 28. Kd2 {[%emt 0:00:36]} f5 {[%emt 0:00:27]} 29. Kc2 {[%emt 0:01:23]} e4 {[%emt 0:01:32]} 30. Nxc4 {[%emt 0:01:19]} Rxc4 {[%emt 0:00:02]} 31. Kb3 {[%emt 0:00:02]} Rxb4+ {[%emt 0:01:04]} 32. Kxb4 {[%emt 0:00:54]} e3 {[%emt 0:00:20]} 33. Rd1 {[%emt 0:00:15]} Ke5 {[%emt 0:00:26]} 1/2-1/2

[Event "GER-ch Youth-U12 2022"]
[Site "Willingen"]
[Date "2022.06.11"]
[Round "9.3"]
[White "Nechitailo, Nikita"]
[Black "Malinowsky, Levi"]
[Result "0-1"]
[ECO "B22"]
[WhiteElo "1371"]
[BlackElo "1816"]
[Annotator "NA RC COMBH"]
[PlyCount "82"]
[EventDate "2022.06.05"]
[EventType "swiss"]
[EventRounds "9"]
[EventCountry "GER"]
[SourceTitle "playchess.com"]
[Source "ChessBase"]
[SourceQuality "1"]
[TimeControl "40/4500+30:900+30"]

1. e4 {[%emt 0:00:00]} c5 {[%emt 0:00:00]} 2. d4 {[%emt 0:00:00]} cxd4 {[%emt 0:00:00]} 3. c3 {[%emt 0:00:00]} Nf6 {[%emt 0:00:00]} 4. e5 {[%emt 0:00:00]} Nd5 {[%emt 0:00:00]} 5. Nf3 {[%emt 0:00:00]} Nc6 {[%emt 0:00:00]} 6. cxd4 {[%emt 0:00:00]} d6 {[%emt 0:00:00]} 7. Bc4 {[%emt 0:00:00]} Nb6 {[%emt 0:00:00]} 8. Bb3 {[%emt 0:00:00]} g6 {[%emt 0:00:00]} 9. O-O {[%emt 0:00:00]} Bg7 {[%emt 0:00:00]} 10. Re1 {[%emt 0:00:00]} O-O {[%emt 0:00:35]} 11. exd6 {[%emt 0:15:15]} Qxd6 {[%emt 0:02:54]} 12. Bg5 {[%emt 0:18:00]} Bg4 {[%emt 0:07:38]} 13. d5 {[%emt 0:00:06]} Ne5 {[%emt 0:10:10]} 14. Nbd2 {[%emt 0:00:24]} Rfe8 {[%emt 0:04:40]} 15. Ne4 {[%emt 0:18:32]} Qb8 {[%emt 0:07:10]} 16. Rc1 {[%emt 0:11:41]} Nc8 {[%emt 0:08:59]} 17. d6 {[%emt 0:13:55]} Nxd6 {[%emt 0:05:15]} 18. Nxd6 {[%emt 0:00:24]} exd6 {[%emt 0:03:28]} 19. Bf4 {[%emt 0:00:01]} Nxf3+ {[%emt 0:03:27]} 20. gxf3 {[%emt 0:00:07]} Rxe1+ {[%emt 0:00:09]} 21. Qxe1 {[%emt 0:00:02]} Bxf3 {[%emt 0:00:54]} 22. Qe7 {[%emt 0:00:43]} Qe8 {[%emt 0:03:54]} 23. Rc7 {[%emt 0:01:24]} Qxe7 {[%emt 0:03:07]} 24. Rxe7 {[%emt 0:00:05]} d5 {[%emt 0:03:00]} 25. Rxb7 {[%emt 0:00:04]} Re8 {[%emt 0:02:48]} 26. Kf1 {[%emt 0:01:18]} Bd4 {[%emt 0:04:21]} 27. Bg3 {[%emt 0:01:45]} Bb6 {[%emt 0:03:25]} 28. Ba4 {[%emt 0:00:42]} Re4 {[%emt 0:00:35]} 29. Bc2 {[%emt 0:02:05]} Rc4 {[%emt 0:01:35]} 30. Be5 {[%emt 0:01:13]} f6 {[%emt 0:00:58]} 31. Bc3 {[%emt 0:00:04]} Rh4 {[%emt 0:03:37]} 32. Rb8+ {[%emt 0:00:03]} Kf7 {[%emt 0:00:44]} 33. Rb7+ {[%emt 0:00:04]} Ke6 {[%emt 0:00:18]} 34. Kg1 {[%emt 0:01:47]} Rg4+ {[%emt 0:00:29]} 35. Kf1 {[%emt 0:00:03]} Rg2 {[%emt 0:00:19]} 36. Bd3 {[%emt 0:01:24]} Rxh2 {[%emt 0:01:18]} 37. Ke1 {[%emt 0:00:11]} Bxf2+ {[%emt 0:00:19]} 38. Kf1 {[%emt 0:00:31]} Be3 {[%emt 0:00:23]} 39. Ke1 {[%emt 0:00:12]} d4 {[%emt 0:01:03]} 40. Bc4+ {[%emt 0:00:22]} Kf5 {[%emt 0:00:25]} 41. Re7 {[%emt 0:15:37]} Bf2+ {[%emt 0:15:52]} 0-1

[Event "GER-ch Youth-U12 2022"]
[Site "Willingen"]
[Date "2022.06.11"]
[Round "9.4"]
[White "Skembris, Simon Max"]
[Black "Zhuikov, Edgard"]
[Result "0-1"]
[ECO "C45"]
[WhiteElo "1413"]
[BlackElo "1892"]
[Annotator "NA RC COMBH"]
[PlyCount "112"]
[EventDate "2022.06.05"]
[EventType "swiss"]
[EventRounds "9"]
[EventCountry "GER"]
[SourceTitle "playchess.com"]
[Source "ChessBase"]
[SourceQuality "1"]
[TimeControl "40/4500+30:900+30"]

1. e4 {[%emt 0:00:00]} e5 {[%emt 0:00:00]} 2. Nf3 {[%emt 0:00:00]} Nc6 {[%emt 0:00:00]} 3. d4 {[%emt 0:00:00]} exd4 {[%emt 0:00:00]} 4. Nxd4 {[%emt 0:00:00]} Bc5 {[%emt 0:00:00]} 5. Be3 {[%emt 0:00:00]} Qf6 {[%emt 0:00:00]} 6. c3 {[%emt 0:00:00]} Nge7 {[%emt 0:00:00]} 7. Bc4 {[%emt 0:00:00]} Ne5 {[%emt 0:00:00]} 8. Be2 {[%emt 0:00:00]} Qg6 {[%emt 0:01:43]} 9. O-O {[%emt 0:00:00]} d6 {[%emt 0:00:00]} 10. Nb5 {[%emt 0:00:00]} Bh3 {[%emt 0:00:00]} 11. Bf3 {[%emt 0:00:00]} O-O-O {[%emt 0:00:00]} 12. Kh1 {[%emt 0:01:34]} Bxe3 {[%emt 0:00:00]} 13. fxe3 {[%emt 0:01:54]} Bd7 {[%emt 0:00:00]} 14. a4 {[%emt 0:07:48]} a6 {[%emt 0:00:00]} 15. Nd4 {[%emt 0:03:35]} Be6 {[%emt 0:00:00]} 16. Nf5 {[%emt 0:04:21]} Bxf5 {[%emt 0:05:00]} 17. exf5 {[%emt 0:08:55]} Nxf5 {[%emt 0:00:33]} 18. Qe2 {[%emt 0:03:05]} Nxf3 {[%emt 0:01:13]} 19. Qxf3 {[%emt 0:00:44]} Nh6 {[%emt 0:00:28]} 20. Nd2 {[%emt 0:04:24]} Rhe8 {[%emt 0:01:56]} 21. b4 {[%emt 0:05:01]} Qd3 {[%emt 0:01:05]} 22. Rfd1 {[%emt 0:06:09]} Rxe3 {[%emt 0:00:35]} 23. Qf4 {[%emt 0:02:05]} Re2 {[%emt 0:03:22]} 24. Nc4 {[%emt 0:03:20]} Qe4 {[%emt 0:00:25]} 25. Qxe4 {[%emt 0:05:01]} Rxe4 {[%emt 0:00:45]} 26. Nd2 {[%emt 0:00:34]} Re2 {[%emt 0:00:16]} 27. Kg1 {[%emt 0:00:50]} Rde8 {[%emt 0:00:18]} 28. Nf3 {[%emt 0:01:44]} Nf5 {[%emt 0:01:28]} 29. Nd4 {[%emt 0:01:47]} Nxd4 {[%emt 0:00:06]} 30. Rxd4 {[%emt 0:00:18]} Rc2 {[%emt 0:00:31]} 31. Rd3 {[%emt 0:00:33]} g6 {[%emt 0:00:28]} 32. Rf1 {[%emt 0:00:38]} f5 {[%emt 0:00:20]} 33. Rff3 {[%emt 0:00:32]} Re1+ {[%emt 0:00:10]} 34. Rf1 {[%emt 0:00:03]} Rxf1+ {[%emt 0:00:04]} 35. Kxf1 {[%emt 0:00:04]} Kd7 {[%emt 0:00:08]} 36. Rh3 {[%emt 0:00:11]} Ke6 {[%emt 0:00:46]} 37. Rxh7 {[%emt 0:00:07]} Rxc3 {[%emt 0:00:03]} 38. Rh4 {[%emt 0:00:21]} b5 {[%emt 0:00:12]} 39. axb5 {[%emt 0:00:25]} axb5 {[%emt 0:00:05]} 40. Rh6 {[%emt 0:00:21]} Kf6 {[%emt 0:00:10]} 41. Rh7 {[%emt 0:15:04]} Ke5 {[%emt 0:15:31]} 42. Rg7 {[%emt 0:00:13]} Kf6 {[%emt 0:00:12]} 43. Rh7 {[%emt 0:00:06]} Rc2 {[%emt 0:00:14]} 44. h4 {[%emt 0:00:19]} f4 {[%emt 0:00:24]} 45. Rh8 {[%emt 0:00:14]} Kf5 {[%emt 0:00:20]} 46. Rf8+ {[%emt 0:00:16]} Ke4 $19 {[%emt 0:01:01]} 47. Rf6 {[%emt 0:00:14]} Rc1+ {[%emt 0:00:14]} 48. Kf2 {[%emt 0:00:14]} Rh1 {[%emt 0:00:03]} 49. g3 {[%emt 0:00:59]} Rh2+ {[%emt 0:00:17]} 50. Kg1 {[%emt 0:00:26]} fxg3 {[%emt 0:00:10]} 51. Rxg6 {[%emt 0:00:41]} Kf3 {[%emt 0:01:25]} 52. Rh6 {[%emt 0:01:00]} Rb2 {[%emt 0:00:12]} 53. Rf6+ {[%emt 0:00:08]} Kg4 {[%emt 0:00:05]} 54. Rf7 {[%emt 0:00:25]} Kh3 {[%emt 0:00:40]} 55. Kf1 {[%emt 0:00:21]} g2+ {[%emt 0:00:16]} 56. Kg1 {[%emt 0:00:05]} Rb1+ {[%emt 0:00:05]} 0-1

[Event "GER-ch Youth-U12 2022"]
[Site "Willingen"]
[Date "2022.06.11"]
[Round "9.5"]
[White "Nemitz, Alfred"]
[Black "Sydykov Bayastan"]
[Result "1-0"]
[ECO "E00"]
[WhiteElo "1611"]
[BlackElo "1477"]
[Annotator "NA RC COMBH"]
[PlyCount "95"]
[EventDate "2022.06.05"]
[EventType "swiss"]
[EventRounds "9"]
[EventCountry "GER"]
[SourceTitle "playchess.com"]
[Source "ChessBase"]
[SourceQuality "1"]
[TimeControl "40/4500+30:900+30"]

1. a3 {[%emt 0:00:00]} d5 {[%emt 0:00:00]} 2. d4 {[%emt 0:00:00]} e6 {[%emt 0:00:00]} 3. c4 {[%emt 0:00:00]} Nf6 {[%emt 0:00:00]} 4. Nc3 {[%emt 0:00:00]} Be7 {[%emt 0:00:00]} 5. cxd5 {[%emt 0:00:00]} exd5 {[%emt 0:00:00]} 6. Bg5 {[%emt 0:00:00]} O-O {[%emt 0:00:00]} 7. e3 {[%emt 0:00:00]} c6 {[%emt 0:00:00]} 8. Bd3 {[%emt 0:00:00]} Nbd7 {[%emt 0:00:00]} 9. Nf3 {[%emt 0:00:00]} Re8 {[%emt 0:00:00]} 10. h3 {[%emt 0:00:00]} Nf8 {[%emt 0:00:00]} 11. Bf4 {[%emt 0:00:00]} Ng6 {[%emt 0:00:00]} 12. Bh2 {[%emt 0:00:00]} Bd6 {[%emt 0:00:00]} 13. Bxd6 {[%emt 0:00:00]} Qxd6 {[%emt 0:00:00]} 14. O-O {[%emt 0:00:00]} Bd7 {[%emt 0:00:00]} 15. b4 {[%emt 0:00:00]} a6 {[%emt 0:00:00]} 16. Rb1 {[%emt 0:00:00]} Ne4 {[%emt 0:00:00]} 17. Qc2 {[%emt 0:00:00]} f5 {[%emt 0:00:00]} 18. a4 {[%emt 0:00:00]} Qf6 {[%emt 0:04:55]} 19. b5 {[%emt 0:01:06]} axb5 {[%emt 0:01:13]} 20. axb5 {[%emt 0:00:16]} Ra3 {[%emt 0:01:45]} 21. Rb3 {[%emt 0:00:20]} Rea8 {[%emt 0:00:29]} 22. bxc6 {[%emt 0:04:10]} bxc6 {[%emt 0:01:32]} 23. Rfb1 {[%emt 0:02:14]} Rxb3 {[%emt 0:07:21]} 24. Qxb3 {[%emt 0:02:55]} Be6 {[%emt 0:05:21]} 25. Qb7 {[%emt 0:23:37]} Rc8 {[%emt 0:01:41]} 26. Na4 {[%emt 0:03:24]} Nh4 {[%emt 0:01:49]} 27. Bxe4 {[%emt 0:01:00]} fxe4 {[%emt 0:00:25]} 28. Nxh4 {[%emt 0:00:48]} Qxh4 {[%emt 0:00:35]} 29. Nc5 {[%emt 0:01:30]} Bxh3 {[%emt 0:24:50]} 30. gxh3 {[%emt 0:03:27]} Rf8 {[%emt 0:01:45]} 31. Rb2 {[%emt 0:06:10]} Qg5+ {[%emt 0:03:38]} 32. Kh1 {[%emt 0:04:38]} Qh5 {[%emt 0:01:44]} 33. Qd7 {[%emt 0:01:47]} Qd1+ {[%emt 0:02:09]} 34. Kh2 {[%emt 0:00:39]} Qf1 {[%emt 0:00:37]} 35. f4 {[%emt 0:06:56]} Rxf4 {[%emt 0:06:15]} 36. exf4 {[%emt 0:00:28]} Qxf4+ {[%emt 0:00:16]} 37. Kg2 {[%emt 0:00:26]} Qf3+ {[%emt 0:01:50]} 38. Kg1 {[%emt 0:00:12]} h6 {[%emt 0:05:20]} 39. Rg2 {[%emt 0:03:02]} g5 {[%emt 0:00:53]} 40. Ne6 {[%emt 0:02:32]} Qf6 {[%emt 0:00:50]} 41. Qd8+ {[%emt 0:15:13]} Kf7 {[%emt 0:15:16]} 42. Rf2 {[%emt 0:00:17]} Qf3 {[%emt 0:00:29]} 43. Rxf3+ {[%emt 0:00:17]} exf3 {[%emt 0:00:10]} 44. Qd7+ {[%emt 0:00:15]} Kf6 {[%emt 0:00:12]} 45. Nd8 {[%emt 0:00:08]} f2+ {[%emt 0:00:05]} 46. Kf1 {[%emt 0:00:05]} g4 {[%emt 0:00:07]} 47. h4 {[%emt 0:00:16]} g3 {[%emt 0:00:10]} 48. Qf7# {[%emt 0:00:06]} 1-0

[Event "GER-ch Youth-U12 2022"]
[Site "Willingen"]
[Date "2022.06.11"]
[Round "9.6"]
[White "Polzin, Gustav"]
[Black "Dordevic, Tom"]
[Result "0-1"]
[ECO "B19"]
[WhiteElo "1643"]
[BlackElo "1771"]
[Annotator "NA RC COMBH"]
[PlyCount "114"]
[EventDate "2022.06.05"]
[EventType "swiss"]
[EventRounds "9"]
[EventCountry "GER"]
[SourceTitle "playchess.com"]
[Source "ChessBase"]
[SourceQuality "1"]
[TimeControl "40/4500+30:900+30"]

1. e4 {[%emt 0:00:00]} c6 {[%emt 0:00:00]} 2. d4 {[%emt 0:00:00]} d5 {[%emt 0:00:00]} 3. Nc3 {[%emt 0:00:00]} dxe4 {[%emt 0:00:00]} 4. Nxe4 {[%emt 0:00:00]} Bf5 {[%emt 0:00:00]} 5. Ng3 {[%emt 0:00:00]} Bg6 {[%emt 0:00:00]} 6. Nf3 {[%emt 0:00:00]} e6 {[%emt 0:00:00]} 7. h4 {[%emt 0:00:00]} h6 {[%emt 0:00:00]} 8. Bd3 {[%emt 0:00:00]} Bxd3 {[%emt 0:00:00]} 9. Qxd3 {[%emt 0:00:00]} Nd7 {[%emt 0:00:00]} 10. Bd2 {[%emt 0:00:00]} Ngf6 {[%emt 0:00:00]} 11. O-O-O {[%emt 0:00:00]} Be7 {[%emt 0:00:00]} 12. Rde1 {[%emt 0:01:18]} Qc7 {[%emt 0:00:00]} 13. h5 {[%emt 0:06:23]} O-O-O {[%emt 0:12:24]} 14. Kb1 {[%emt 0:09:13]} Rhe8 {[%emt 0:01:34]} 15. Re2 {[%emt 0:01:41]} Bd6 {[%emt 0:09:36]} 16. Ne4 {[%emt 0:09:22]} Nxe4 {[%emt 0:00:15]} 17. Rxe4 {[%emt 0:01:11]} Nf6 {[%emt 0:01:02]} 18. Ree1 {[%emt 0:00:30]} Kb8 {[%emt 0:11:03]} 19. Qe2 {[%emt 0:06:51]} Nd7 {[%emt 0:07:08]} 20. Bc3 {[%emt 0:02:24]} a6 {[%emt 0:01:11]} 21. Rh4 {[%emt 0:03:23]} f6 {[%emt 0:04:57]} 22. Re4 {[%emt 0:07:17]} Nf8 {[%emt 0:03:43]} 23. Nh4 {[%emt 0:04:49]} Qf7 {[%emt 0:07:12]} 24. Nf5 {[%emt 0:05:48]} Bc7 {[%emt 0:00:29]} 25. Bb4 {[%emt 0:02:12]} Rd5 {[%emt 0:02:12]} 26. g4 {[%emt 0:03:22]} Red8 {[%emt 0:01:24]} 27. Bxf8 {[%emt 0:02:43]} exf5 {[%emt 0:01:31]} 28. Re8 {[%emt 0:00:23]} Rxd4 {[%emt 0:10:23]} 29. gxf5 {[%emt 0:01:26]} Be5 {[%emt 0:01:57]} 30. Rxd8+ {[%emt 0:02:51]} Rxd8 {[%emt 0:00:07]} 31. Bc5 {[%emt 0:01:57]} Qd7 {[%emt 0:03:52]} 32. Qg4 {[%emt 0:02:02]} Qd2 {[%emt 0:04:02]} 33. Rg1 {[%emt 0:01:15]} Qf4 {[%emt 0:01:25]} 34. Qxg7 {[%emt 0:04:22]} Qf3 {[%emt 0:02:28]} 35. Rc1 {[%emt 0:02:08]} Qxf5 {[%emt 0:01:22]} 36. Bb6 {[%emt 0:02:06]} Rc8 {[%emt 0:00:13]} 37. Rd1 {[%emt 0:02:14]} Qxh5 {[%emt 0:00:52]} 38. Qd7 {[%emt 0:00:27]} Qe8 {[%emt 0:00:18]} 39. Qf5 {[%emt 0:01:04]} Qf8 {[%emt 0:00:56]} 40. f4 {[%emt 0:00:35]} Bc7 {[%emt 0:00:32]} 41. Bc5 {[%emt 0:16:54]} Rd8 {[%emt 0:00:00]} 42. Rh1 {[%emt 0:00:00]} Qg7 {[%emt 0:00:00]} 43. a3 {[%emt 0:00:00]} Rd5 {[%emt 0:00:00]} 44. Qe6 {[%emt 0:00:00]} Rxc5 {[%emt 0:00:00]} 45. Qe8+ {[%emt 0:00:00]} Ka7 {[%emt 0:00:00]} 46. c4 {[%emt 0:00:00]} Rxc4 {[%emt 0:00:45]} 47. Rd1 {[%emt 0:00:00]} Qg4 {[%emt 0:01:55]} 48. Rd7 {[%emt 0:00:00]} Qg1+ {[%emt 0:00:13]} 49. Ka2 {[%emt 0:00:07]} Qb6 {[%emt 0:00:16]} 50. Qe7 {[%emt 0:00:00]} Rc2 {[%emt 0:01:54]} 51. Qxf6 {[%emt 0:00:00]} Bxf4 {[%emt 0:00:22]} 52. Rd3 {[%emt 0:00:00]} Bg5 {[%emt 0:01:01]} 53. Qe5 {[%emt 0:00:00]} Rc5 {[%emt 0:01:02]} 54. Qg7 {[%emt 0:00:00]} Rd5 {[%emt 0:01:18]} 55. Rb3 {[%emt 0:00:00]} Rb5 {[%emt 0:00:03]} 56. Rg3 {[%emt 0:00:00]} Qf2 {[%emt 0:00:38]} 57. Rg4 {[%emt 0:00:00]} Bf6 {[%emt 0:00:31]} 0-1

[Event "GER-ch Youth-U12 2022"]
[Site "Willingen"]
[Date "2022.06.11"]
[Round "9.7"]
[White "Herrmann, Arthur"]
[Black "Schuricht, Emil Frederick"]
[Result "1-0"]
[ECO "B12"]
[WhiteElo "1507"]
[BlackElo "1641"]
[Annotator "NA RC COMBH"]
[PlyCount "41"]
[EventDate "2022.06.05"]
[EventType "swiss"]
[EventRounds "9"]
[EventCountry "GER"]
[SourceTitle "playchess.com"]
[Source "ChessBase"]
[SourceQuality "1"]
[TimeControl "40/4500+30:900+30"]

1. e4 {[%emt 0:00:00]} c6 {[%emt 0:00:00]} 2. Ne2 {[%emt 0:00:00]} d5 {[%emt 0:00:00]} 3. e5 {[%emt 0:00:00]} c5 {[%emt 0:00:00]} 4. c3 {[%emt 0:00:00]} Nc6 {[%emt 0:00:00]} 5. d4 {[%emt 0:00:00]} Bf5 {[%emt 0:00:00]} 6. dxc5 {[%emt 0:00:00]} Nxe5 {[%emt 0:00:00]} 7. Nd4 {[%emt 0:00:00]} Bd7 {[%emt 0:00:00]} 8. Qh5 {[%emt 0:00:02]} Qb8 {[%emt 0:06:20]} 9. f4 {[%emt 0:16:05]} Ng6 {[%emt 0:00:25]} 10. Qxd5 {[%emt 0:04:04]} Nxf4 {[%emt 0:07:42]} 11. Qf3 {[%emt 0:09:04]} Qe5+ {[%emt 0:04:41]} 12. Kf2 {[%emt 0:13:19]} Ne6 {[%emt 0:08:46]} 13. Nxe6 {[%emt 0:00:00]} Bxe6 {[%emt 0:01:29]} 14. Bb5+ {[%emt 0:00:31]} Kd8 {[%emt 0:00:17]} 15. Rd1+ {[%emt 0:03:03]} Kc8 {[%emt 0:00:19]} 16. c6 {[%emt 0:07:58]} Qxb5 {[%emt 0:07:57]} 17. cxb7+ {[%emt 0:00:17]} Qxb7 {[%emt 0:00:21]} 18. Rd8+ {[%emt 0:00:19]} Kc7 {[%emt 0:01:18]} 19. Bf4+ {[%emt 0:01:06]} Kb6 {[%emt 0:00:57]} 20. Rxa8 {[%emt 0:02:20]} Nf6 {[%emt 0:00:58]} 21. Rb8 {[%emt 0:00:20]} 1-0